fUSD/lending_fUSD_20250417
["ID","MTS","AMOUNT","RATE_DAILY","PERIOD"]
[358242626,1744869047279,-518.18822824,0.00052054,120]
[358242627,1744869047290,-500.0,0.00052054,120]
[358242628,1744869047299,-621.36,0.00052054,120]
[358242629,1744869047309,-521.7,0.00052054,120]
[358242630,1744869047319,-500.0,0.00052054,120]
[358242631,1744869047332,-1674.55,0.00052054,120]
[358242632,1744869047342,-1264.63,0.00052054,120]
[358242633,1744869047351,-500.0,0.00052054,120]
[358242634,1744869047361,-296.01616743,0.00052054,120]
[358242635,1744869047370,-500.0,0.00052054,120]
[358242636,1744869047380,-655.0,0.00052054,120]
[358242637,1744869047389,-500.0,0.00052054,120]
[358242638,1744869047399,-500.0,0.00052054,120]
[358242639,1744869047408,-1737.91,0.00052054,120]
[358242640,1744869047418,-1647.43,0.00052054,120]
[358242641,1744869047428,-947.76,0.00052054,120]
[358242642,1744869047437,-500.0,0.00052054,120]
[358242643,1744869047447,-534.84057992,0.00052054,120]
[358242644,1744869047456,-1239.3,0.00052054,120]
[358242645,1744869047465,-506.41504585,0.00052054,120]
[358242646,1744869047474,-500.0,0.00052054,120]
[358242647,1744869047484,-624.87,0.00052054,120]
[358242648,1744869047494,-500.0,0.00052054,120]
[358242649,1744869047504,-528.44,0.00052054,120]
[358242650,1744869047513,-500.0,0.00052054,120]
[358242651,1744869047523,-1966.28,0.00052054,120]
[358242652,1744869047532,-500.0,0.00052054,120]
[358242653,1744869047541,-500.0,0.00052054,120]
[358242654,1744869047550,-500.0,0.00052054,120]
[358242655,1744869047560,-500.0,0.00052054,120]
[358242656,1744869047569,-500.0,0.00052054,120]
[358242657,1744869047578,-542.79,0.00052054,120]
[358242658,1744869047587,-500.0,0.00052054,120]
[358242659,1744869047597,-1141.19,0.00052054,120]
[358242660,1744869047607,-500.0,0.00052054,120]
[358242661,1744869047616,-507.96859142,0.00052054,120]
[358242662,1744869047626,-548.3276664,0.00052054,120]
[358242663,1744869047635,-500.0,0.00052054,120]
[358242664,1744869047645,-500.0,0.00052054,120]
[358242665,1744869047655,-2010.18,0.00052054,120]
[358242666,1744869047665,-556.71,0.00052054,120]
[358242667,1744869047674,-500.0,0.00052054,120]
[358242668,1744869047683,-500.0,0.00052054,120]
[358242669,1744869047693,-908.91,0.00052054,120]
[358242670,1744869047702,-500.0,0.00052054,120]
[358242671,1744869047712,-500.0,0.00052054,120]
[358242672,1744869047722,-656.75,0.00052054,120]
[358242673,1744869047731,-805.92,0.00052054,120]
[358242674,1744869047741,-500.0,0.00052054,120]
[358242675,1744869047751,-540.43,0.00052054,120]
[358242676,1744869047761,-945.28,0.00052054,120]
[358242677,1744869047771,-1005.72,0.00052054,120]
[358242678,1744869047781,-501.69755837,0.00052054,120]
[358242679,1744869047791,-500.0,0.00052054,120]
[358242680,1744869047801,-500.0,0.00052054,120]
[358242681,1744869047812,-500.0,0.00052054,120]
[358242682,1744869047822,-1502.09,0.00052054,120]
[358242683,1744869047832,-500.0,0.00052054,120]
[358242684,1744869047842,-500.0,0.00052054,120]
[358242685,1744869047851,-189.16517466,0.00052054,120]
[358242686,1744869047860,-473.95491367,0.00052054,120]
[358242687,1744869047869,-500.0,0.00052054,120]
[358242688,1744869047879,-500.0,0.00052054,120]
[358242689,1744869047888,-500.0,0.00052054,120]
[358242690,1744869047897,-500.0,0.00052054,120]
[358242691,1744869047907,-159.93948169,0.00052054,120]
[358242692,1744869047916,-500.0,0.00052054,120]
[358242693,1744869047925,-819.08,0.00052054,120]
[358242694,1744869047934,-957.1,0.00052054,120]
[358242695,1744869047943,-234.8220412,0.00052054,120]
[358242696,1744869047952,-734.95,0.00052054,120]
[358242697,1744869047961,-500.0,0.00052054,120]
[358242698,1744869047971,-300.0,0.00052054,120]
[358242699,1744869047980,-820.83,0.00052054,120]
[358242700,1744869047989,-500.0,0.00052054,120]
[358242701,1744869047998,-500.0,0.00052054,120]
[358242702,1744869048009,-500.0,0.00052054,120]
[358242703,1744869048018,-500.0,0.00052054,120]
[358242704,1744869048028,-500.0,0.00052054,120]
[358242705,1744869048037,-794.01,0.00052054,120]
[358242706,1744869048047,-500.0,0.00052054,120]
[358242707,1744869048057,-1172.84,0.00052054,120]
[358242708,1744869048066,-500.0,0.00052054,120]
[358242709,1744869048075,-500.0,0.00052054,120]
[358242710,1744869048085,-500.0,0.00052054,7]
[358242711,1744869048094,-500.0,0.00052054,120]
[358242712,1744869048103,-1068.76,0.00052054,120]
[358242713,1744869048111,-500.0,0.00052054,120]
[358242714,1744869048120,-500.0,0.00052054,120]
[358242715,1744869048129,-570.29900027,0.00052054,120]
[358242716,1744869048138,-693.28,0.00052054,120]
[358242717,1744869048147,-500.0,0.00052054,120]
[358242718,1744869048155,-500.0,0.00052054,120]
[358242719,1744869048164,-1000.0,0.00052054,120]
[358242720,1744869048174,-500.0,0.00052054,120]
[358242721,1744869048182,-500.0,0.00052054,120]
[358242722,1744869048191,-500.0,0.00052054,120]
[358242723,1744869048200,-516.64,0.00052054,120]
[358242724,1744869048209,-500.0,0.00052054,120]
[358242725,1744869048218,-500.0,0.00052054,120]
[358242726,1744869048228,-500.0,0.00052054,120]
[358242727,1744869048237,-738.42,0.00052054,120]
[358242728,1744869048248,-1088.61,0.00052054,120]
[358242729,1744869048262,-500.0,0.00052054,120]
[358242730,1744869048272,-786.09,0.00052054,120]
[358242731,1744869048282,-636.69,0.00052054,120]
[358242732,1744869048293,-500.0,0.00052054,120]
[358242733,1744869048303,-500.0,0.00052054,120]
[358242734,1744869048313,-500.0,0.00052054,120]
[358242735,1744869048323,-531.25002038,0.00052054,120]
[358242736,1744869048333,-514.62400742,0.00052054,120]
[358242737,1744869048343,-968.19,0.00052054,120]
[358242738,1744869048356,-837.07,0.00052054,120]
[358242739,1744869048366,-500.0,0.00052054,120]
[358242740,1744869048375,-856.21,0.00052054,118]
[358242741,1744869048385,-500.0,0.00052054,120]
[358242742,1744869048395,-544.39,0.00052054,120]
[358242743,1744869048404,-500.0,0.00052054,120]
[358242744,1744869048413,-500.0,0.00052054,120]
[358242745,1744869048423,-2454.35,0.00052054,120]
[358242746,1744869048432,-500.0,0.00052054,120]
[358242747,1744869048443,-500.0,0.00052054,120]
[358242748,1744869048452,-500.0,0.00052054,120]
[358242749,1744869048462,-515.64,0.00052054,120]
[358242750,1744869048472,-1400.44,0.00052054,120]
[358242751,1744869048482,-500.0,0.00052054,120]
[358242752,1744869048491,-151.92553959,0.00052054,120]
[358242753,1744869048501,-585.04,0.00052054,120]
[358242754,1744869048511,-738.55,0.00052054,120]
[358242755,1744869048522,-500.0,0.00052054,120]
[358242756,1744869048532,-160.87267947,0.00052054,120]
[358242757,1744869048542,-914.67,0.00052054,120]
[358242758,1744869048551,-500.0,0.00052054,120]
[358242759,1744869048561,-1740.97,0.00052054,120]
[358242760,1744869048570,-500.0,0.00052054,120]
[358242761,1744869048580,-500.0,0.00052054,120]
[358242762,1744869048590,-1169.4,0.00052054,120]
[358242763,1744869048600,-500.0,0.00052054,120]
[358242764,1744869048610,-500.0,0.00052054,120]
[358242765,1744869048620,-500.0,0.00052054,120]
[358242766,1744869048630,-500.0,0.00052054,120]
[358242767,1744869048640,-2572.77,0.00052054,120]
[358242768,1744869048649,-554.56,0.00052054,120]
[358242769,1744869048660,-503.32108041,0.00052054,120]
[358242770,1744869048669,-533.51,0.00052054,120]
[358242771,1744869048680,-1283.24,0.00052054,120]
[358242772,1744869048691,-527.97,0.00052054,120]
[358242773,1744869048701,-889.43,0.00052054,120]
[358242774,1744869048710,-500.0,0.00052054,120]
[358242775,1744869048720,-500.0,0.00052054,120]
[358242776,1744869048730,-1057.35,0.00052054,120]
[358242777,1744869048740,-297.17772037,0.00052054,120]
[358242778,1744869048750,-1057.89,0.00052054,120]
[358242779,1744869048760,-649.52,0.00052054,120]
[358242780,1744869048770,-1432.41,0.00052054,120]
[358242781,1744869048780,-500.0,0.00052054,120]
[358242782,1744869048790,-500.0,0.00052054,120]
[358242783,1744869048799,-500.0,0.00052054,120]
[358242784,1744869048809,-1097.9,0.00052054,120]
[358242785,1744869048818,-596.23060117,0.00052054,120]
[358242786,1744869048828,-500.0,0.00052054,120]
[358242787,1744869048838,-500.0,0.00052054,120]
[358242788,1744869048848,-2076.97,0.00052054,120]
[358242789,1744869048858,-837.27,0.00052054,120]
[358242790,1744869048867,-1361.07,0.00052054,120]
[358242791,1744869048877,-500.0,0.00052054,120]
[358242792,1744869048887,-500.0,0.00052054,120]
[358242793,1744869048897,-691.93,0.00052054,120]
[358242794,1744869048907,-1032.06,0.00052054,120]
[358242795,1744869048917,-500.0,0.00052054,120]
[358242796,1744869048926,-500.0,0.00052054,120]
[358242797,1744869048937,-1070.47,0.00052054,120]
[358242798,1744869048946,-866.0,0.00052054,120]
[358242799,1744869048956,-2259.0,0.00052054,120]
[358242800,1744869048966,-500.0,0.00052054,120]
[358242801,1744869048976,-500.0,0.00052054,120]
[358242802,1744869048986,-1136.84,0.00052054,120]
[358242803,1744869048996,-500.0,0.00052054,120]
[358242804,1744869049006,-1324.43,0.00052054,120]
[358242805,1744869049016,-500.0,0.00052054,120]
[358242806,1744869049027,-500.0,0.00052054,120]
[358242807,1744869049036,-500.0,0.00052054,120]
[358242808,1744869049046,-500.0,0.00052054,120]
[358242809,1744869049056,-500.0,0.00052054,120]
[358242810,1744869049065,-638.02,0.00052054,120]
[358242811,1744869049075,-668.92,0.00052054,120]
[358242812,1744869049085,-500.0,0.00052054,120]
[358242813,1744869049095,-961.39,0.00052054,8]
[358242814,1744869049104,-1138.49,0.00052054,120]
[358242815,1744869049113,-500.0,0.00052054,120]
[358242816,1744869049123,-539.34,0.00052054,30]
[358242817,1744869049132,-1574.25,0.00052054,120]
[358242818,1744869049143,-500.0,0.00052055,60]
[358242819,1744869049152,-250.36306374,0.00052055,60]
[358242820,1744869049161,-500.0,0.00052055,60]
[358242821,1744869049171,-500.0,0.00052055,60]
[358242822,1744869049180,-150.0,0.00052055,60]
[358242823,1744869049189,-150.0,0.00052055,60]
[358242824,1744869049198,-2643.0,0.00052055,60]
[358242825,1744869049207,-526.0,0.00052055,60]
[358242826,1744869049216,-150.0,0.00052055,60]
[358242827,1744869049226,-500.0,0.00052055,60]
[358242828,1744869049235,-500.0,0.00052055,60]
[358242829,1744869049244,-150.0,0.00052055,60]
[358242830,1744869049258,-150.0,0.00052055,60]
[358242831,1744869049272,-500.0,0.00052055,60]
[358242832,1744869049285,-500.0,0.00052055,60]
[358242833,1744869049302,-150.0,0.00052055,60]
[358242834,1744869049315,-196.24123542,0.00052055,60]
[358242835,1744869049327,-150.0,0.00052055,60]
[358242836,1744869049339,-500.0,0.00052055,120]
[358242837,1744869049353,-450.34734017,0.00052055,120]
[358242838,1744869049366,-500.0,0.00052055,60]
[358242839,1744869049378,-244.21108207,0.00052055,60]
[358242840,1744869049391,-500.0,0.00052055,60]
[358242841,1744869049405,-500.0,0.00052055,60]
[358242842,1744869049418,-150.0,0.00052055,60]
[358242843,1744869049431,-1979.02151633,0.00052137,15]
[358242844,1744869049444,-14576.4033912,0.00052164,4]
[358242845,1744869049456,-502.7,0.00052174,120]
[358242846,1744869049467,-500.0,0.00052174,120]
[358242847,1744869049478,-450.05404986,0.00052214,47]
[358242848,1744869049493,-284.38389802,0.00052234,30]
[358242849,1744869049506,-201.80054994,0.00052234,30]
[358242850,1744869049519,-14576.4033912,0.00052242,4]
[358242851,1744869049532,-14576.4033912,0.00052244,4]
[358242852,1744869049545,-43729.2101736,0.00052252,4]
[358242853,1744869049558,-10306.4750699,0.00052252,4]
[358242854,1744869049571,-14576.4033912,0.00052254,4]
[358242855,1744869049584,-5153.23753494,0.00052254,4]
[358242856,1744869049598,-1433.18,0.00052262,120]
[358242857,1744869049611,-1378.93,0.00052262,120]
[358242858,1744869049624,-555.81,0.00052262,120]
[358242859,1744869049636,-500.0,0.00052262,120]
[358242860,1744869049648,-1777.39927637,0.00052262,7]
[358242861,1744869049683,-1265.475,0.00052262,7]
[358242862,1744869049698,-2104.80116,0.00052262,7]
[358242863,1744869049725,-1241.88355995,0.00052262,7]
[358242864,1744869049741,-4940.28605047,0.00052262,7]
[358242865,1744869050169,-1318.3450002,0.00052262,7]
[358242866,1744869050209,-153.0,0.00050138,60]
[358242867,1744869050221,-7726.73604722,0.00052262,7]
[358242868,1744869050263,-15195.79705185,0.00052262,7]
[358242869,1744869050301,-17063.80206054,0.00052262,7]
[358242870,1744869051108,-41.42557992,0.00052262,7]
[358242871,1744869051127,-834.16499975,0.00052262,7]
[358242872,1744869051140,-958.96718811,0.00052262,7]
[358242873,1744869051834,-151.0,0.00050708,30]
[358242874,1744869051845,-499.36375576,0.00052054,120]
[358242875,1744869051859,-0.63624424,0.00052054,120]
[358242876,1744869051870,-343.13639575,0.00052054,120]
[358242877,1744869051884,-156.86360425,0.00052054,120]
[358242878,1744869051895,-10733.59639575,0.00052262,7]
[358242879,1744869051908,-901.9,0.00052262,7]
[358242880,1744869103718,250.0,0.00017,2]
[358242882,1744869278340,-166.77,0.000335,31]
[358242883,1744869288004,-5446.51932713,0.00039637,2]
[358242884,1744869337909,-233.94,0.00024932,2]
[358242886,1744869421044,-231.97905439,0.00024,10]
[358242894,1744870031145,-536.06857222,0.00024,10]
[358242895,1744870049089,-79.63465383,0.00024,10]
[358242896,1744870049112,-847.68228044,0.00025,10]
[358242897,1744870049136,-250.0,0.000264,2]
[358242898,1744870049159,-498.21036288,0.00027,10]
[358242899,1744870232406,-349.47191756,0.00027,10]
[358242900,1744870232415,-847.68228044,0.00028,10]
[358242901,1744870232424,-5.52867534,0.00029,10]
[358242902,1744870232436,-842.1536051,0.00029,10]
[358242903,1744870232446,-847.68228044,0.0003,10]
[358242904,1744870232455,-233.94,0.00030829,2]
[358242905,1744870232465,-847.68228044,0.00031,10]
[358242906,1744870232474,-847.68228044,0.00032,10]
[358242907,1744870232483,-171.42,0.00032877,30]
[358242908,1744870232493,-847.68228044,0.00033,10]
[358242909,1744870232502,-166.77,0.000335,31]
[358242910,1744870232512,-847.68228044,0.00034,10]
[358242911,1744870232521,-847.68228044,0.00035,10]
[358242912,1744870232531,-847.68228044,0.00036,10]
[358242913,1744870232541,-233.94,0.00036727,2]
[358242914,1744870232550,-847.68228044,0.00037,10]
[358242915,1744870232559,-847.68228044,0.00039,10]
[358242916,1744870232568,-166.77,0.00039637,2]
[358242917,1744870232577,-166.77,0.000408,31]
[358242918,1744870232586,-166.77,0.000408,31]
[358242919,1744870232595,-847.68228044,0.00041,10]
[358242921,1744870232604,-233.94,0.00042624,2]
[358242923,1744870232613,-847.68228044,0.00045,10]
[358242924,1744870232622,-309.8,0.00045,120]
[358242925,1744870232631,-2000.0,0.00045679,7]
[358242926,1744870232641,-847.68228044,0.00046,10]
[358242927,1744870232651,-847.68228044,0.00047,10]
[358242928,1744870232660,-598.07,0.00047148,2]
[358242929,1744870232669,-199.66904935,0.00047171,30]
[358242930,1744870232679,-1335.16692695,0.00047171,2]
[358242931,1744870232688,-449.13607992,0.00047171,2]
[358242932,1744870232698,-166.77,0.000481,45]
[358242934,1744870232708,-166.77,0.000481,45]
[358242936,1744870232717,-350.0,0.00048467,5]
[358242938,1744870232726,-1000.0,0.00048468,2]
[358242939,1744870232735,-233.94,0.00048522,2]
[358242941,1744870232744,-167.53,0.00048577,2]
[358242943,1744870232753,-4509.51185294,0.0004935,2]
[358242946,1744870232762,-598.07,0.00049412,2]
[358242948,1744870232771,-263.24,0.00049428,120]
[358242950,1744870232780,-150.32,0.00049668,120]
[358242952,1744870232793,-475.9403418,0.00049684,4]
[358242953,1744870232803,-2000.0,0.000499,2]
[358242955,1744870232812,-847.68228044,0.0005,10]
[358242957,1744870232821,-152.0,0.00050087,120]
[358242959,1744870232831,-3967.0,0.00050087,120]
[358242961,1744870232840,-865.0,0.00050087,120]
[358242963,1744870232849,-1247.1,0.00050181,2]
[358242964,1744870232858,-881.39,0.00050224,2]
[358242966,1744870232867,-169.86,0.00050463,2]
[358242968,1744870232878,-678.726,0.00050463,90]
[358242970,1744870232888,-5721.20408907,0.00050635,2]
[358242999,1744870233252,-34003.99861093,0.00050635,2]
[358243000,1744870233261,-186.1648,0.00050635,2]
[358243001,1744870233270,-5767.9125,0.00050635,2]
[358243002,1744870233279,-18818.1703,0.00050635,2]
[358243003,1744870233288,-500.0,0.00050635,2]
[358243004,1744870233297,-68540.55240088,0.00050735,2]
[358243005,1744870233309,-1798.84122781,0.00050735,2]
[358243006,1744870233321,-699.0406038,0.00050735,2]
[358243007,1744870233332,-1333.79999994,0.00050735,2]
[358243008,1744870233352,-615.85558201,0.00050735,2]
[358243018,1744870238371,-1124.0,0.00050087,120]
[358243019,1744870238381,-129.875,0.00050635,2]
[358243020,1744870238392,-3808.9992382,0.00050635,2]
[358243021,1744870238406,-2748.7753618,0.00050635,2]
[358243022,1744870238415,-85820.64406191,0.00050735,2]
[358243023,1744870238424,-3790.20926028,0.00050802,15]
[358243024,1744870238433,-3790.2092602,0.00050813,15]
[358243025,1744870238442,-3790.2092602,0.00050824,15]
[358243026,1744870238451,-3790.2092602,0.00050835,15]
[358243027,1744870238460,-3790.2092602,0.00050846,15]
[358243028,1744870238469,-3790.2092602,0.00050858,15]
[358243029,1744870238478,-3790.2092602,0.00050869,15]
[358243030,1744870238487,-3790.2092602,0.0005088,15]
[358243031,1744870238496,-1781.11936476,0.0005089,15]
[358243032,1744870238505,-3790.2092602,0.00050891,15]
[358243033,1744870238514,-9852.37133444,0.00050902,2]
[358243034,1744870238523,-312.45056858,0.00050902,2]
[358243035,1744870238532,-3790.2092602,0.00050902,15]
[358243036,1744870238543,-1781.11936469,0.00050902,15]
[358243037,1744870238552,-1781.11936469,0.00050915,15]
[358243038,1744870238561,-1781.11936469,0.00050927,15]
[358243039,1744870238570,-1781.11936469,0.0005094,15]
[358243040,1744870238585,-1781.11936469,0.00050952,15]
[358243041,1744870238604,-1781.11936469,0.00050965,15]
[358243042,1744870238613,-150.5,0.0005097,120]
[358243043,1744870238622,-1781.11936469,0.00050977,15]
[358243044,1744870238631,-28202.2141697,0.00050979,4]
[358243045,1744870238640,-150.5,0.0005098,120]
[358243046,1744870238650,-212.68623052,0.0005098,7]
[358243047,1744870238660,-163.59834917,0.00050989,120]
[358243048,1744870238669,-500.0,0.00050989,120]
[358243049,1744870238679,-237.44842396,0.00050989,120]
[358243050,1744870238688,-300.0,0.00050989,30]
[358243051,1744870238698,-108762.57558462,0.00050989,120]
[358243052,1744870238708,-1781.11936469,0.0005099,15]
[358243053,1744870238718,-93447.91262472,0.0005099,64]
[358243054,1744870238730,-1443.08268036,0.0005099,64]
[358243055,1744870238742,-427.23904402,0.0005099,64]
[358243056,1744870238754,-1725.14852447,0.0005099,64]
[358243082,1744870240694,-4338.10210443,0.0005099,64]
[358243083,1744870240983,-242127.7000594,0.0005099,64]
[358243084,1744870240995,-2000.0,0.0005099,64]
[358243089,1744870244609,-151.0,0.00034384,2]
[358243090,1744870244619,-151.0,0.00034384,2]
[358243091,1744870244629,-903.77239216,0.0005099,64]
[358243092,1744870244639,-627.51999998,0.0005099,64]
[358243093,1744870244651,-822.7,0.0005099,64]
[358243094,1744870244661,-927.855,0.0005099,64]
[358243095,1744870244672,-2587.22977502,0.0005099,64]
[358243097,1744870246410,-8969.90115002,0.0005099,64]
[358243098,1744870246421,-3986.50608536,0.0005099,64]
[358243099,1744870246444,-320.20304,0.0005099,64]
[358243100,1744870246455,-53817.02471987,0.0005099,64]
[358243101,1744870246464,-378.73168395,0.0005099,64]
[358243102,1744870246473,-21111.37660763,0.0005099,4]
[358243103,1744870246484,-770.687,0.0005099,4]
[358243110,1744870906002,250.0,0.00017,2]
[358243111,1744870907116,300.0,0.00019,2]
[358243116,1744871217142,-151.07,0.00024932,2]
[358243117,1744871217165,-117.26901709,0.00024966,2]
[358243118,1744871217819,2427.51351913,0.0001778,2]
[358243119,1744871236112,-1057.46018184,0.00024,5]
[358243120,1744871236135,-132.73098291,0.00024966,2]
[358243121,1744871236156,-57.90405803,0.00025,2]
[358243122,1744871247096,-94.89594197,0.00025,2]
[358243123,1744871247119,-250.0,0.00027425,2]
[358243124,1744871247142,-250.0,0.00027425,2]
[358243125,1744871247165,-176.87089155,0.000291,2]
[358243126,1744871254259,-368.52030429,0.00023,15]
[358243127,1744871283332,-250.0,0.00023,15]
[358243129,1744871320041,3155.819999,0.000151,2]
[358243140,1744871431377,-21.24594184,0.00023,15]
[358243141,1744871431387,-250.0,0.000253,2]
[358243142,1744871431397,-23.12910845,0.000291,2]
[358243143,1744871431406,-146.78794971,0.00031523,2]
[358243144,1744871431417,-4.28205029,0.00031523,2]
[358243145,1744871431427,-151.07,0.00038114,2]
[358243146,1744871431436,-150.0,0.00041,14]
[358243147,1744871431446,-151.07,0.00044706,2]
[358243148,1744871431455,-435.12773986,0.00047748,2]
[358243149,1744871431471,-141.00226014,0.00047748,2]
[358243150,1744871431480,-192.65785484,0.00049194,2]
[358243151,1744871431490,-152.0,0.00049294,3]
[358243152,1744871431499,-2000.0,0.000493,2]
[358243153,1744871431509,-1000.0,0.00049483,120]
[358243154,1744871431518,-150.32,0.00049496,120]
[358243155,1744871431527,-180.59,0.00049559,2]
[358243156,1744871431537,-997.68,0.00049659,2]
[358243157,1744871431546,-1114.22620171,0.00049684,90]
[358243158,1744871431556,-404.7191355,0.00049684,4]
[358243159,1744871431566,-245.69,0.00049772,120]
[358243160,1744871431576,-493.22,0.00049781,2]
[358243161,1744871431588,-169.86,0.00049974,2]
[358243162,1744871431597,-404.0,0.00049999,15]
[358243163,1744871431607,-300.0,0.00049999,10]
[358243164,1744871431615,-4886.07954781,0.0005,120]
[358243165,1744871431634,-2423.62144666,0.0005,120]
[358243167,1744871431645,-325.11200482,0.0005,120]
[358243171,1744871431668,-391.54782696,0.0005,120]
[358243172,1744871431680,-286.24606077,0.0005,120]
[358243177,1744871437496,-722.46997603,0.0005,120]
[358243178,1744871437506,-498.86558703,0.0005,120]
[358243179,1744871437515,-142.50191443,0.00050012,9]
[358243180,1744871437527,-407.49808557,0.00050012,9]
[358243181,1744871437536,-576.13,0.00050012,2]
[358243182,1744871437545,-1000.0,0.00050635,2]
[358243183,1744871437555,-352.85964578,0.00050635,30]
[358243184,1744871437564,-24.38766003,0.00050787,2]
[358243185,1744871437576,-168.27019481,0.00050787,2]
[358243186,1744871437586,-936.81271598,0.00050879,8]
[358243187,1744871437595,-224.6048,0.00050879,2]
[358243188,1744871437604,-2638.13413243,0.00050879,15]
[358243189,1744871437615,-2983.69665769,0.00050879,15]
[358243190,1744871437624,-171.88713461,0.00050879,28]
[358243191,1744871437633,-2210.41379545,0.0005088,15]
[358243192,1744871437642,-1363.52424733,0.0005088,23]
[358243193,1744871437651,-315.9481,0.0005088,2]
[358243194,1744871437660,-1868.3494,0.0005088,2]
[358243195,1744871437669,-5621.8307901,0.00050881,15]
[358243196,1744871437680,-2210.41379545,0.00050882,15]
[358243197,1744871437690,-5621.8307901,0.00050884,15]
[358243198,1744871437699,-2210.41379545,0.00050884,15]
[358243199,1744871437708,-5621.8307901,0.00050886,15]
[358243200,1744871437718,-2210.41379545,0.00050887,15]
[358243201,1744871437726,-5621.8307901,0.00050888,15]
[358243202,1744871437736,-2210.41379545,0.00050889,15]
[358243203,1744871437745,-450.05404986,0.0005089,42]
[358243204,1744871437754,-5621.8307901,0.00050891,15]
[358243205,1744871437763,-2210.41379545,0.00050891,15]
[358243206,1744871437773,-5621.8307901,0.00050893,15]
[358243207,1744871437782,-2210.41379545,0.00050893,15]
[358243208,1744871437791,-5621.8307901,0.00050895,15]
[358243209,1744871437801,-2210.41379545,0.00050896,15]
[358243210,1744871437810,-598.98,0.00050896,91]
[358243211,1744871437819,-5621.8307901,0.00050898,15]
[358243212,1744871437828,-2210.41379545,0.00050898,15]
[358243213,1744871437838,-198.86575981,0.00050899,120]
[358243214,1744871437848,-504.41773669,0.000509,27]
[358243215,1744871437858,-500.0,0.000509,2]
[358243216,1744871437867,-542.52852055,0.000509,21]
[358243217,1744871437877,-6000.0,0.000509,30]
[358243219,1744871437886,-500.0,0.000509,7]
[358243221,1744871437896,-2210.41379545,0.000509,15]
[358243222,1744871437905,-5621.8307901,0.000509,15]
[358243224,1744871437914,-371.01851598,0.000509,2]
[358243226,1744871437923,-312.45056858,0.000509,2]
[358243228,1744871437932,-10026.61975374,0.000509,2]
[358243230,1744871437942,-150.5,0.0005097,120]
[358243232,1744871437951,-70178.604478,0.0005097,4]
[358243234,1744871437961,-500.0,0.00050973,10]
[358243236,1744871437970,-7492.65143613,0.00050978,30]
[358243238,1744871437979,-14035.7208956,0.00050979,4]
[358243240,1744871437988,-334.67813536,0.00050979,120]
[358243242,1744871437998,-108762.57558462,0.00050979,120]
[358243244,1744871438007,-163.59834917,0.00050979,120]
[358243245,1744871438016,-500.0,0.00050979,120]
[358243246,1744871438026,-237.44842396,0.00050979,120]
[358243247,1744871438035,-54199.8124404,0.0005098,4]
[358243250,1744871438062,-253.54095357,0.0005098,4]
[358243253,1744871438073,-28864.59833013,0.0005098,4]
[358243274,1744871439702,-42432.8,0.0005098,4]
[358243275,1744871439713,-880.86585084,0.0005098,4]
[358243276,1744871439862,-10242.49016967,0.0005098,4]
[358243277,1744871439878,-3806.40139911,0.0005098,4]
[358243278,1744871439888,-802.65819,0.0005098,4]
[358243279,1744871439897,-614.704,0.0005098,4]
[358243289,1744871442885,-1567.17304762,0.0005098,4]
[358243291,1744871443684,-29.81544638,0.0005098,4]
[358243292,1744871443696,-23973.95721219,0.0005098,4]
[358243293,1744871443711,-552.86475445,0.0005098,4]
[358243296,1744871445426,-10471.784483,0.0005098,4]
[358243297,1744871445518,-472.189,0.0005098,4]
[358243298,1744871445615,-8563.056966,0.0005098,4]
[358243299,1744871445708,-3751.08455139,0.0005098,4]